fUST/lending_fUST_20240106
["ID","MTS","AMOUNT","RATE_DAILY","PERIOD"]
[310374840,1704521441791,-197.440071,0.00037343,2]
[310374841,1704521441801,-503.54,0.00037534,3]
[310374842,1704521441811,-500.0,0.00037534,3]
[310374843,1704521441822,-1264.9,0.00037534,3]
[310374844,1704521441831,-331.22479234,0.00037534,3]
[310374845,1704521441842,-500.0,0.00037534,3]
[310374846,1704521441852,-500.0,0.00037534,3]
[310374847,1704521441863,-1093.59,0.00037534,3]
[310374848,1704521441873,-701.22,0.00037534,3]
[310374849,1704521441882,-500.0,0.00037534,3]
[310374850,1704521441892,-511.72838361,0.00037534,3]
[310374851,1704521441902,-219.96908355,0.0003777,30]
[310374852,1704521441911,-974.77216394,0.00037791,2]
[310374853,1704521441921,-5938.79112663,0.00037791,4]
[310374854,1704521441930,-169.413658,0.00037793,2]
[310374855,1704521441940,-394.880142,0.00037793,2]
[310374856,1704521441949,-169.413656,0.00037793,2]
[310374857,1704521441960,-394.880142,0.00037793,2]
[310374858,1704521441969,-168.185517,0.00037793,2]
[310374859,1704521441979,-197.440071,0.00037793,2]
[310374860,1704521441988,-503.54,0.00037808,3]
[310374861,1704521441998,-500.0,0.00037808,3]
[310374862,1704521442007,-1264.9,0.00037808,3]
[310374863,1704521442017,-500.0,0.00037808,3]
[310374864,1704521442026,-500.0,0.00037808,3]
[310374865,1704521442036,-1093.59,0.00037808,3]
[310374866,1704521442045,-701.22,0.00037808,3]
[310374867,1704521442054,-500.0,0.00037808,3]
[310374868,1704521442064,-23938.70071605,0.0003789,2]
[310374869,1704521442073,-502.971403,0.000379,7]
[310374870,1704521442082,-1570.12292109,0.00038,4]
[310374871,1704521442091,-7509.05795706,0.00038,3]
[310374872,1704521442101,-42223.00706626,0.00038,10]
[310374873,1704521442121,-2368.08291423,0.00038,10]
[310374874,1704521442133,-15306.86857185,0.00038,10]
[310374875,1704521442143,-244.12597039,0.00038,30]
[310374876,1704521442153,-7000.0,0.00038,2]
[310374877,1704521442163,-503.54,0.00038082,3]
[310374878,1704521442174,-500.0,0.00038082,3]
[310374879,1704521442183,-1264.9,0.00038082,3]
[310374880,1704521442193,-500.0,0.00038082,3]
[310374881,1704521442202,-160.22510003,0.00038082,3]
[310374882,1704521442214,-1093.59,0.00038082,3]
[310374883,1704521442223,-701.22,0.00038082,3]
[310374884,1704521442233,-500.0,0.00038082,3]
[310374885,1704521442242,-2553.161024,0.00038352,2]
[310374886,1704521442251,-503.54,0.00038356,3]
[310374887,1704521442261,-500.0,0.00038356,3]
[310374888,1704521442271,-1264.9,0.00038356,3]
[310374889,1704521442281,-500.0,0.00038356,3]
[310374890,1704521442292,-1093.59,0.00038356,3]
[310374891,1704521442301,-500.0,0.00038356,2]
[310374892,1704521442312,-701.22,0.00038356,3]
[310374893,1704521442321,-500.0,0.00038356,3]
[310374894,1704521442331,-194.38429124,0.00038356,7]
[310374895,1704521442342,-155.0,0.0003849,2]
[310374896,1704521442352,-503.54,0.0003863,3]
[310374897,1704521442362,-500.0,0.0003863,3]
[310374898,1704521442372,-1264.9,0.0003863,3]
[310374899,1704521442381,-500.0,0.0003863,3]
[310374900,1704521442391,-1093.59,0.0003863,3]
[310374901,1704521442401,-701.22,0.0003863,3]
[310374902,1704521442410,-500.0,0.0003863,3]
[310374903,1704521442420,-163.0,0.00038663,14]
[310374904,1704521442430,-300.0,0.000387,20]
[310374905,1704521442438,-502.0,0.0003874,2]
[310374906,1704521442448,-175.24530589,0.000388,45]
[310374907,1704521442459,-500.0,0.000389,7]
[310374908,1704521442468,-503.54,0.00038904,3]
[310374909,1704521442478,-500.0,0.00038904,3]
[310374910,1704521442488,-1264.9,0.00038904,3]
[310374911,1704521442498,-500.0,0.00038904,3]
[310374912,1704521442507,-1093.59,0.00038904,3]
[310374913,1704521442516,-701.22,0.00038904,3]
[310374914,1704521442526,-500.0,0.00038904,3]
[310374915,1704521442537,-12261.66449794,0.00038947,5]
[310374916,1704521442546,-154.82968734,0.00039,4]
[310374917,1704521442556,-4883.84439685,0.00039,10]
[310374918,1704521442565,-2033.50368312,0.00039,2]
[310374919,1704521442574,-8183.79816617,0.00039,2]
[310374920,1704521442583,-208.0,0.0003915,7]
[310374921,1704521442593,-150.0,0.0003916,7]
[310374922,1704521442603,-150.0,0.0003917,7]
[310374923,1704521442612,-503.54,0.00039178,3]
[310374924,1704521442621,-500.0,0.00039178,3]
[310374925,1704521442630,-1264.9,0.00039178,3]
[310374926,1704521442640,-500.0,0.00039178,3]
[310374928,1704521442650,-1093.59,0.00039178,3]
[310374930,1704521442659,-701.22,0.00039178,3]
[310374932,1704521442668,-500.0,0.00039178,3]
[310374934,1704521442678,-4865.0,0.00039422,60]
[310374936,1704521442687,-160.0,0.00039422,60]
[310374938,1704521442696,-283.0,0.00039422,60]
[310374940,1704521442705,-249.0,0.00039422,7]
[310374941,1704521442715,-7521.0,0.00039422,60]
[310374943,1704521442725,-273.0,0.00039422,7]
[310374945,1704521442734,-4865.0,0.00039432,60]
[310374947,1704521442744,-160.0,0.00039432,60]
[310374948,1704521442753,-283.0,0.00039432,60]
[310374949,1704521442762,-249.0,0.00039432,7]
[310374951,1704521442771,-7521.0,0.00039432,60]
[310374953,1704521442781,-273.0,0.00039432,7]
[310374955,1704521442790,-4865.0,0.00039442,60]
[310374958,1704521442800,-160.0,0.00039442,60]
[310374960,1704521442809,-249.0,0.00039442,7]
[310374962,1704521442819,-283.0,0.00039442,60]
[310374964,1704521442828,-7521.0,0.00039442,60]
[310374966,1704521442838,-273.0,0.00039442,7]
[310374968,1704521442847,-503.54,0.00039452,3]
[310374970,1704521442857,-500.0,0.00039452,3]
[310374972,1704521442867,-1264.9,0.00039452,3]
[310374974,1704521442876,-500.0,0.00039452,3]
[310374976,1704521442885,-1093.59,0.00039452,3]
[310374979,1704521442895,-701.22,0.00039452,3]
[310374981,1704521442904,-500.0,0.00039452,3]
[310374985,1704521442914,-151.0,0.00039485,2]
[310374989,1704521442923,-2553.161024,0.0003963,2]
[310374992,1704521442933,-503.54,0.00039726,3]
[310374995,1704521442942,-500.0,0.00039726,3]
[310374998,1704521442952,-1264.9,0.00039726,3]
[310375000,1704521442962,-500.0,0.00039726,3]
[310375002,1704521442972,-1093.59,0.00039726,3]
[310375004,1704521442980,-701.22,0.00039726,3]
[310375006,1704521442990,-500.0,0.00039726,3]
[310375007,1704521442999,-155.0,0.0003986,2]
[310375008,1704521443009,-499.80429709,0.00039898,5]
[310375009,1704521443018,-500.0,0.000399,7]
[310375013,1704521443118,-4034.81482968,0.0003999,4]
[310375014,1704521443128,-741.79531825,0.00039992,10]
[310375015,1704521443137,-322.3346562,0.00039992,10]
[310375016,1704521443147,-339.46374918,0.00039992,7]
[310375017,1704521443157,-277806.31552,0.00039997,4]
[310375018,1704521443167,-20736.08815364,0.00039998,3]
[310375019,1704521443177,-223.06065072,0.00039999,4]
[310375020,1704521443186,-18942.10925695,0.00039999,2]
[310375021,1704521443195,-681.45188108,0.00039999,5]
[310375022,1704521443205,-211.15439469,0.00039999,7]
[310375023,1704521443215,-463.6549794,0.00039999,7]
[310375024,1704521443224,-154.82968734,0.0004,4]
[310375025,1704521443234,-4379.15036228,0.0004,120]
[310375026,1704521443243,-3026.58949291,0.0004,2]
[310375049,1704521446248,-1321.80054486,0.00024999,2]
[310375050,1704521446258,-278.75559923,0.00029898,2]
[310375051,1704521446267,-1590.45742703,0.00036986,2]
[310375052,1704521446279,-92.07457446,0.00036986,2]
[310375053,1704521446288,-1973.4105061,0.0004,2]
[310375054,1704521446298,-561.89104446,0.0004,14]
[310375072,1704521448776,-0.53340578,0.00036985,4]
[310375079,1704521481032,-606.18577739,0.00019699,2]
[310375080,1704521481061,-176.73188283,0.000197,2]
[310375081,1704521481142,-15.97791143,0.000197,2]
[310375086,1704521492347,-360.43132424,0.00019698,2]
[310375087,1704521492378,-144.52446711,0.00019699,2]
[310375088,1704521492503,-10.30522023,0.00019699,2]
[310375090,1704521758661,-5000.0,0.00019149,2]
[310375091,1704521758947,-2257.4586241,0.00019149,2]
[310375101,1704521899450,5938.79112663,0.00018827,2]
[310375105,1704522058466,233.697544,0.00018854,2]
[310375106,1704522120555,24900.0,0.00018847,2]
[310375109,1704522359298,1464.56216826,0.00017249,2]
[310375113,1704522477631,-548.83459136,0.000197,2]
[310375114,1704522477889,-11.20070595,0.000197,2]
[310375116,1704522479452,322.57910218,0.000197,2]
[310375117,1704522484085,-5000.0,0.000197,2]
[310375118,1704522484207,-5000.0,0.000197,2]
[310375119,1704522484371,-487.05697578,0.000197,2]
[310375120,1704522484403,-264.66072966,0.000197,2]
[310375121,1704522484432,-1029.74071675,0.000197,2]
[310375123,1704522487000,1211.92219978,0.000197,2]
[310375124,1704522489904,245.65133887,0.000197,2]
[310375125,1704522490681,230.29533204,0.000197,2]
[310375126,1704522493858,-1987.76057133,0.000197,2]
[310375127,1704522494173,-40.56654227,0.000197,2]
[310375128,1704522494589,1947.19402906,0.000197,2]
[310375129,1704522494928,-2837.30926569,0.000197,2]
[310375130,1704522503459,-256.32154885,0.000197,2]
[310375131,1704522503653,-5.23105202,0.000197,2]
[310375132,1704522504622,164.78197284,0.000197,2]
[310375133,1704522504667,86.30852399,0.000197,2]
[310375134,1704522504694,256.32154885,0.000197,2]
[310375135,1704522505269,-5000.0,0.000197,2]
[310375136,1704522505302,-5000.0,0.000197,2]
[310375137,1704522505562,-5000.0,0.000197,2]
[310375138,1704522505640,-5000.0,0.000197,2]
[310375139,1704522505848,-502.78712473,0.000197,2]
[310375140,1704522511173,-955.74575769,0.000197,2]
[310375141,1704522511326,-19.50501546,0.000197,2]
[310375142,1704522515627,-292.98806082,0.000197,2]
[310375143,1704522515904,-5.97934818,0.000197,2]
[310375144,1704522517653,287.00871264,0.000197,2]
[310375145,1704522517943,-1290.32670763,0.000197,2]
[310375146,1704522517971,-508.6242048,0.000197,2]
[310375147,1704522525345,-2750.296311,0.000197,2]
[310375148,1704522525642,-56.12849614,0.000197,2]
[310375149,1704522526174,212.77620315,0.000197,2]
[310375150,1704522529568,245.82782927,0.000197,2]
[310375151,1704522529693,2235.56378244,0.000197,2]
[310375152,1704522529721,2750.296311,0.000197,2]
[310375158,1704522547895,-5000.0,0.00019699,2]
[310375159,1704522548044,-5000.0,0.00019699,2]
[310375160,1704522548180,-5000.0,0.00019699,2]
[310375161,1704522548299,-867.43030525,0.00019699,2]
[310375162,1704522548330,-466.43140132,0.00019699,2]
[310375163,1704522548359,-2951.69364891,0.000197,2]
[310375245,1704522632516,-181.8541412,0.00019178,2]
[310375247,1704522632525,-553.66023323,0.0001971,2]
[310375249,1704522632534,-450.07674495,0.00019711,2]
[310375251,1704522632547,-1807.41648463,0.00019711,2]
[310375253,1704522632558,-999.39269363,0.00019711,2]
[310375255,1704522632567,-172.99502236,0.00019713,2]
[310375256,1704522632577,-307.03838679,0.00019828,2]
[310375258,1704522632586,-582.51334347,0.00019829,2]
[310375260,1704522632595,-2076.65490248,0.0002,2]
[310375262,1704522632605,-1970.464803,0.0002,2]
[310375263,1704522632615,-1970.464803,0.0002,2]
[310375264,1704522632626,-1970.464803,0.0002,2]
[310375266,1704522632636,-1970.464803,0.0002,2]
[310375268,1704522632646,-1970.464803,0.0002,2]
[310375269,1704522632660,-2991.89800169,0.00020803,2]
[310375271,1704522632670,-154.82968734,0.00020804,2]
[310375273,1704522632680,-1194.15929222,0.00020804,2]
[310375274,1704522632690,-236.00464652,0.00020805,2]
[310375276,1704522632700,-676.3587277,0.00020805,2]
[310375278,1704522632710,-179.824082,0.00020806,2]
[310375279,1704522632720,-24900.0,0.00020834,2]
[310375280,1704522632730,-155.2346716,0.00020919,2]
[310375281,1704522632739,-166.666666,0.00021918,2]
[310375283,1704522632749,-435.68157441,0.00021999,2]
[310375285,1704522632760,-3916.3398371,0.00022,2]
[310375286,1704522632769,-4912.75517152,0.00022,2]
[310375287,1704522632779,-166.666666,0.00022431,2]
[310375288,1704522632789,-973.03500616,0.00022498,2]
[310375289,1704522632798,-2028.3271136,0.00022942,2]
[310375290,1704522632808,-1029.74071675,0.00022943,2]
[310375291,1704522632817,-245.65133887,0.00022943,2]
[310375292,1704522632827,-166.666666,0.00022944,2]
[310375293,1704522632836,-309.65937468,0.00022998,2]
[310375294,1704522632846,-9910.17247127,0.00023,2]
[310375295,1704522632855,-6920.21,0.00023431,3]
[310375296,1704522632864,-1106.57830979,0.00023441,2]
[310375303,1704522638581,-4605.47982571,0.00023441,2]
[310375304,1704522638593,-10155.37216975,0.00023441,2]
[310375305,1704522638602,-2091.44093784,0.00023451,2]
[310375306,1704522638611,-508.6242048,0.00023452,2]
[310375307,1704522638621,-166.666666,0.00023456,2]
[310375308,1704522638630,-166.666666,0.00023969,2]
[310375309,1704522638640,-602.63014722,0.00023997,2]
[310375310,1704522638649,-636.45069088,0.00023997,2]
[310375311,1704522638662,-6370.6649391,0.00023997,2]
[310375312,1704522638671,-264.30047742,0.00023997,2]
[310375313,1704522638680,-230.02010166,0.00023997,2]
[310375314,1704522638690,-2291.27896623,0.00024,2]
[310375315,1704522638699,-166.666666,0.00024482,2]
[310375316,1704522638708,-2546.46626234,0.000248,3]
[310375317,1704522638717,-1042.61446305,0.000249,2]
[310375318,1704522638726,-1321.80054486,0.000249,2]
[310375319,1704522638735,-1576.20853557,0.00024997,2]
[310375320,1704522638744,-164.65816911,0.00024998,2]
[310375321,1704522638753,-284.52323119,0.00024998,2]
[310375322,1704522638762,-2805.17049391,0.00024998,2]
[310375323,1704522638772,-212.56706251,0.00024998,2]
[310375324,1704522638781,-245.36049263,0.00024998,2]
[310375325,1704522638791,-466.12469227,0.00024998,2]
[310375326,1704522638800,-7926.85749831,0.00024998,2]
[310375327,1704522638809,-211.47793682,0.00024999,2]
[310375328,1704522638818,-14032.39531522,0.00024999,2]
[310375329,1704522638827,-466.91337894,0.00024999,2]
[310375330,1704522638836,-209.09063448,0.00024999,2]
[310375331,1704522638845,-561.36080109,0.00024999,2]
[310375332,1704522638855,-3002.87321176,0.00025,2]
[310375333,1704522638864,-344.52854123,0.00025,2]
[310375334,1704522638874,-4707.01098899,0.00025,2]
[310375336,1704522638883,-613.44573934,0.00025,2]
[310375337,1704522638893,-2483.08597309,0.00025,2]
[310375338,1704522638902,-3000.0,0.00025,2]
[310375340,1704522638913,-525.41295756,0.00026,2]
[310375342,1704522638922,-717.44898194,0.000264,2]
[310375343,1704522638932,-1042.61446304,0.00027554,2]
[310375345,1704522638942,-624.8724491,0.0002772,2]
[310375347,1704522638951,-212.3894497,0.00028,2]
[310375349,1704522638960,-312.6006807,0.000288,2]
[310375351,1704522638970,-3659.85423734,0.00029,2]
[310375353,1704522638979,-620.24362245,0.00029106,2]
[310375355,1704522638989,-155.0,0.0002997,2]
[310375357,1704522638998,-289.0,0.0003,2]
[310375359,1704522639008,-1042.61446304,0.00030208,2]
[310375361,1704522639017,-2000.0,0.000308,2]
[310375363,1704522639026,-2000.0,0.000308,2]
[310375365,1704522639035,-2000.0,0.0003081,2]
[310375367,1704522639045,-2000.0,0.0003081,2]
[310375369,1704522639054,-2000.0,0.0003082,2]
[310375371,1704522639064,-2000.0,0.0003082,2]
[310375373,1704522639073,-2000.0,0.0003083,2]
[310375375,1704522639083,-2000.0,0.0003083,2]
[310375377,1704522639092,-2000.0,0.0003084,2]
[310375379,1704522639101,-2000.0,0.0003084,2]
[310375381,1704522639110,-2000.0,0.0003085,2]
[310375383,1704522639120,-2000.0,0.0003085,2]
[310375385,1704522639129,-2000.0,0.0003086,2]
[310375387,1704522639139,-2000.0,0.0003086,2]
[310375389,1704522639148,-2000.0,0.0003087,2]
[310375391,1704522639159,-2000.0,0.0003087,2]
[310375393,1704522639168,-2000.0,0.0003088,2]
[310375395,1704522639177,-2000.0,0.0003088,2]
[310375397,1704522639186,-2000.0,0.0003089,2]
[310375399,1704522639195,-2000.0,0.0003089,2]
[310375401,1704522639204,-2000.0,0.000309,2]
[310375403,1704522639214,-2000.0,0.000309,2]
[310375405,1704522639223,-2000.0,0.0003091,2]
[310375407,1704522639232,-2000.0,0.0003091,2]
[310375409,1704522639242,-2000.0,0.0003092,2]
[310375411,1704522639251,-2000.0,0.0003092,2]
[310375413,1704522639261,-2000.0,0.0003093,2]
[310375415,1704522639270,-2000.0,0.0003093,2]
[310375417,1704522639279,-2000.0,0.0003094,2]
[310375419,1704522639289,-2000.0,0.0003094,2]
[310375421,1704522639298,-2000.0,0.0003095,2]
[310375423,1704522639307,-2000.0,0.0003095,2]
[310375425,1704522639316,-2000.0,0.0003096,2]
[310375427,1704522639326,-2000.0,0.0003096,2]
[310375428,1704522639335,-2000.0,0.0003097,2]
[310375429,1704522639344,-2000.0,0.0003097,2]
[310375430,1704522639353,-2000.0,0.0003098,2]
[310375431,1704522639362,-2000.0,0.0003098,2]
[310375432,1704522639372,-2000.0,0.0003099,2]
[310375433,1704522639381,-2693.647152,0.0003099,2]
[310375435,1704522639390,-225.23,0.00030999,2]
[310375436,1704522639401,-225.23,0.00030999,2]
[310375438,1704522639413,-225.23,0.00030999,2]
[310375439,1704522639422,-225.23,0.00030999,2]
[310375440,1704522639433,-225.23,0.00030999,2]
[310375441,1704522639442,-225.23,0.00030999,2]
[310375442,1704522639451,-103870.08264571,0.00031,4]
[310375443,1704522639460,-2000.0,0.00031,2]
[310375444,1704522639470,-2000.0,0.0003101,2]
[310375445,1704522639479,-2000.0,0.0003102,2]
[310375446,1704522639488,-2000.0,0.0003103,2]
[310375447,1704522639498,-2000.0,0.0003104,2]
[310375448,1704522639509,-2000.0,0.0003105,2]
[310375449,1704522639518,-2000.0,0.0003106,2]
[310375450,1704522639527,-3649.333466,0.0003107,2]
[310375451,1704522639537,-155.0,0.0003134,2]
[310375453,1704522639546,-155.0,0.0003271,2]
[310375455,1704522639555,-1042.61446304,0.00032862,2]
[310375456,1704522639565,-852.82114132,0.00032869,4]
[310375457,1704522639574,-172.99502236,0.00032896,6]
[310375458,1704522639583,-155.07727581,0.00033,4]
[310375459,1704522639593,-245.41474178,0.00033,4]
[310375460,1704522639602,-499.80429709,0.00033833,5]
[310375461,1704522639611,-1000.0,0.00034,7]
[310375462,1704522639622,-155.0,0.0003408,2]
[310375463,1704522639631,-11919.66758038,0.000345,2]
[310375464,1704522639641,-2553.161024,0.00034521,2]
[310375465,1704522639652,-150.83408251,0.0003471,7]
[310375466,1704522639663,-3541.79156626,0.00035,2]
[310375467,1704522639673,-7798.15163609,0.00035,4]
[310375468,1704522639682,-590.79111504,0.00035,2]
[310375469,1704522639692,-252.0,0.00035,2]
[310375470,1704522639701,-1455.75460259,0.00035,14]
[310375471,1704522639710,-282.78427369,0.00035,4]
[310375472,1704522639720,-476.32081937,0.00035,4]
[310375473,1704522639729,-4349.6256334,0.00035,4]
[310375474,1704522639739,-2660.07799725,0.00035,4]
[310375475,1704522639748,-870.93877862,0.00035,7]
[310375476,1704522639758,-8000.0,0.000351,30]
[310375477,1704522639767,-155.27505373,0.0003526,2]
[310375478,1704522639776,-150.83408251,0.00035418,4]
[310375479,1704522639785,-156.11119389,0.0003545,2]
[310375480,1704522639794,-406.0,0.00035452,2]
[310375481,1704522639803,-39926.56661117,0.000355,14]
[310375482,1704522639813,-1042.61446304,0.00035516,2]
[310375483,1704522639822,-225.22,0.00035615,2]
[310375484,1704522639831,-225.22,0.00035615,2]
[310375485,1704522639840,-295.97703225,0.00035616,3]
[310375486,1704522639850,-155.06726715,0.00035616,4]
[310375487,1704522639860,-1978.78623634,0.00035616,4]
[310375488,1704522639869,-2799.90774105,0.00035616,4]
[310375489,1704522639879,-154.82968734,0.00035616,30]
[310375490,1704522639889,-309.61298454,0.00035616,4]
[310375492,1704522639898,-458.80081369,0.00035616,4]
[310375493,1704522639910,-296.9965682,0.00035616,4]
[310375495,1704522639919,-95006.56603193,0.00035616,30]
[310375496,1704522639928,-265.70132317,0.00035616,4]
[310375497,1704522639938,-155.2097952,0.00035616,2]
[310375498,1704522639947,-346.63904701,0.00035616,4]
[310375499,1704522639957,-176.37293722,0.00035616,4]
[310375500,1704522639966,-4552.57249781,0.00035616,4]
[310375501,1704522639975,-300.0,0.00035616,4]
[310375502,1704522639985,-1024.87777413,0.00035616,2]
[310375503,1704522639994,-154.87609912,0.00035616,4]
[310375504,1704522640003,-370.12415487,0.00035616,2]
[310375505,1704522640012,-166.364766,0.00035616,120]
[310375506,1704522640022,-211.03896368,0.00035619,4]
[310375507,1704522640031,-500.0,0.00035619,4]
[310375508,1704522640040,-618.2066392,0.00035619,4]
[310375509,1704522640049,-500.0,0.00035619,4]
[310375510,1704522640059,-500.0,0.00035619,4]
[310375511,1704522640068,-500.0,0.00035619,4]
[310375512,1704522640078,-500.0,0.00035619,4]
[310375513,1704522640087,-299.15312036,0.00035619,4]
[310375514,1704522640096,-500.0,0.00035619,4]
[310375515,1704522640105,-500.0,0.00035619,4]
[310375516,1704522640114,-500.0,0.00035619,4]
[310375517,1704522640124,-336.81648065,0.00035619,7]
[310375518,1704522640133,-2553.161024,0.00035798,2]
[310375519,1704522640142,-12261.66449794,0.000358,5]
[310375520,1704522640152,-597.59769215,0.00035832,2]
[310375521,1704522640163,-20.02957977,0.00035832,2]
[310375522,1704522640184,-159.24972787,0.00035832,2]
[310375523,1704522640193,-3676.17275108,0.00035839,2]
[310375524,1704522640204,-3801.63662694,0.00035839,2]
[310375525,1704522640214,-512.02904486,0.00035839,2]
[310375526,1704522640223,-169.004277,0.00035994,2]
[310375527,1704522640232,-197.440071,0.00035994,2]
[310375528,1704522640241,-197.440071,0.00035994,2]
[310375529,1704522640251,-394.880142,0.00035994,2]
[310375530,1704522640260,-6.33147775,0.00035994,2]
[310375531,1704522640271,-157.77122525,0.00035994,2]
[310375532,1704522640280,-169.004277,0.00035994,2]
[310375533,1704522640290,-197.440071,0.00035994,2]
[310375534,1704522640300,-796.36933,0.00036,30]
[310375535,1704522640309,-281.78382395,0.00036074,2]
[310375536,1704522640319,-150.83408251,0.00036141,2]
[310375537,1704522640329,-197.440071,0.00036443,2]
[310375538,1704522640338,-197.440071,0.00036443,2]
[310375539,1704522640347,-394.880142,0.00036443,2]
[310375540,1704522640356,-197.440071,0.00036443,2]
[310375541,1704522640365,-525.96243595,0.00036458,2]
[310375542,1704522640376,-747.75295105,0.00036458,2]
[310375543,1704522640386,-3377.67317931,0.00036619,3]
[310375544,1704522640395,-891.09234161,0.00036619,2]
[310375545,1704522640405,-169.004277,0.00036893,2]
[310375546,1704522640415,-197.440071,0.00036893,2]
[310375547,1704522640424,-197.440071,0.00036893,2]
[310375548,1704522640434,-394.880142,0.00036893,2]
[310375549,1704522640443,-169.004277,0.00036893,2]
[310375550,1704522640452,-197.440071,0.00036893,2]
[310375551,1704522640462,-15528.05810637,0.00036983,5]
[310375552,1704522640470,-2553.161024,0.00037075,2]
[310375553,1704522640480,-197.440071,0.00037343,2]
[310375554,1704522640488,-197.440071,0.00037343,2]
[310375555,1704522640497,-394.880142,0.00037343,2]
[310375556,1704522640506,-197.440071,0.00037343,2]
[310375557,1704522640516,-219.96908355,0.0003777,30]
[310375558,1704522640525,-169.004277,0.00037793,2]
[310375559,1704522640534,-197.440071,0.00037793,2]
[310375560,1704522640544,-197.440071,0.00037793,2]
[310375561,1704522640553,-394.880142,0.00037793,2]
[310375562,1704522640563,-169.004277,0.00037793,2]
[310375563,1704522640572,-197.440071,0.00037793,2]
[310375564,1704522640582,-3000.0,0.000378,2]
[310375566,1704522640590,-7520.05654792,0.00037897,2]
[310375567,1704522640600,-1570.12292109,0.00038,4]
[310375569,1704522640609,-163.0,0.00038,2]
[310375570,1704522640618,-7412.83547527,0.00038,7]
[310375571,1704522640629,-163.0,0.00038,2]
[310375572,1704522640640,-244.12597039,0.00038,30]
[310375573,1704522640649,-164.0,0.00038,2]
[310375576,1704522640659,-163.0,0.00038,2]
[310375577,1704522640668,-502.971403,0.00038,7]
[310375578,1704522640677,-2553.161024,0.00038352,2]
[310375579,1704522640687,-506.48336976,0.00038356,5]
[310375580,1704522640696,-507.01927649,0.00038356,5]
[310375581,1704522640705,-500.0,0.00038356,5]
[310375582,1704522640714,-511.00435323,0.00038356,5]
[310375583,1704522640723,-500.0,0.00038356,5]
[310375584,1704522640733,-597.78004292,0.00038356,5]
[310375585,1704522640742,-500.0,0.00038356,5]
[310375586,1704522640752,-500.0,0.00038356,5]
[310375587,1704522640761,-500.0,0.00038356,5]
[310375588,1704522640771,-358.33337075,0.00038356,5]
[310375589,1704522640781,-502.72305038,0.00038356,5]
[310375590,1704522640790,-510.97783528,0.00038356,5]
[310375591,1704522640801,-506.57414684,0.00038356,5]
[310375593,1704522640810,-500.0,0.00038356,5]
[310375595,1704522640820,-500.0,0.00038356,2]
[310375597,1704522640829,-503.54,0.00038356,5]
[310375599,1704522640838,-501.80203555,0.00038356,2]
[310375600,1704522640848,-511.16309898,0.00038356,5]
[310375602,1704522640858,-442.01695768,0.00038356,3]
[310375603,1704522640867,-500.0,0.00038356,5]
[310375604,1704522640877,-500.0,0.00038356,5]
[310375606,1704522640887,-500.0,0.00038356,5]
[310375607,1704522640896,-500.0,0.00038356,5]
[310375609,1704522640906,-500.0,0.00038356,5]
[310375610,1704522640916,-502.00846595,0.00038356,5]
[310375611,1704522640925,-500.0,0.00038356,5]
[310375612,1704522641011,-500.0,0.00038356,5]
[310375613,1704522641021,-500.0,0.00038356,5]
[310375614,1704522641030,-1264.9,0.00038356,5]
[310375616,1704522641039,-525.48480124,0.00038356,5]
[310375618,1704522641049,-500.0,0.00038356,5]
[310375619,1704522641058,-500.0,0.00038356,5]
[310375621,1704522641067,-511.097766,0.00038356,5]
[310375623,1704522641076,-500.0,0.00038356,5]
[310375625,1704522641085,-500.0,0.00038356,5]
[310375626,1704522641094,-500.0,0.00038356,5]
[310375627,1704522641103,-500.0,0.00038356,5]
[310375628,1704522641113,-500.0,0.00038356,5]
[310375629,1704522641124,-500.0,0.00038356,5]